bitfinex/quotes_ETHUSD_20260310
["timestamp","ask_amount","ask_price","bid_price","bid_amount"]
[1773131181936,2.75521223,2063.0,2062.6,0.001]
[1773131182142,2.75521223,2063.0,2062.4,0.001]
[1773131183556,2.75521223,2063.0,2062.4,1.21317875]
[1773131184070,1.21188617,2062.9,2062.4,0.001]
[1773131184450,3.9670984,2062.9,2062.4,0.001]
[1773131185168,1.21185282,2063.0,2062.4,0.001]
[1773131185372,1.21185282,2063.0,2062.4,2.70314374]
[1773131186241,1.21181125,2063.1,2062.5,1.21212121]
[1773131187137,3.96702348,2063.1,2062.5,3.91426495]
[1773131187464,2.75521223,2063.3,2062.6,2.70214374]
[1773131188047,2.75521223,2063.3,2062.4,3.91527639]
[1773131188248,2.75521223,2063.1,2062.5,1.558]
[1773131189170,2.75521223,2063.1,2062.5,2.7701134]
[1773131189373,2.75521223,2063.1,2062.5,1.2121134]
[1773131189874,2.75521223,2063.1,2062.8,0.001]
[1773131190373,3.96703314,2063.1,2062.8,0.001]
[1773131190580,1.2137587,2063.2,2062.8,0.001]
[1773131190886,1.21371376,2063.2,2062.8,0.001]
[1773131191086,2.75521223,2063.1,2062.8,0.001]
[1773131191238,2.75521223,2063.1,2062.5,0.001]
[1773131192576,2.75521223,2062.9,2062.5,0.001]
[1773131194990,3.84015348,2062.8,2062.5,0.001]
[1773131195455,1.21194492,2062.8,2062.5,0.001]
[1773131195659,2.62820856,2062.7,2062.4,0.001]
[1773131196766,3.84013973,2062.9,2062.4,0.001]
[1773131196967,2.62820856,2062.8,2062.4,0.001]
[1773131199389,2.62820856,2062.6,2062.4,0.001]
[1773131199595,2.62820856,2062.6,2061.7,3.76178681]
[1773131199760,2.62820856,2062.6,2061.7,2.54920447]
[1773131200121,2.62820856,2062.6,2061.5,5.3188708]
[1773131200652,2.62820856,2062.6,2061.5,2.76966633]
[1773131200850,2.62820856,2062.6,2061.6,2.54920447]
[1773131201367,3.84032977,2062.5,2061.8,2.54920447]
[1773131201564,2.62820856,2062.5,2061.8,2.54920447]
[1773131202548,2.62820856,2062.8,2061.8,2.54920447]
[1773131202753,3.84020114,2062.8,2061.9,2.54920447]
[1773131202949,2.62820856,2062.7,2061.9,2.54920447]
[1773131203583,2.62820856,2062.5,2061.8,2.54920447]
[1773131203762,2.62820856,2062.5,2062.0,0.001]
[1773131204282,1.21206244,2062.6,2062.0,2.55020447]
[1773131204663,3.840271,2062.6,2062.0,2.55020447]
[1773131205053,3.84215348,2062.9,2062.0,2.55020447]
[1773131205249,3.84015348,2062.8,2062.0,2.55020447]
[1773131205452,2.62820856,2062.7,2062.0,2.55020447]
[1773131205990,2.62820856,2062.5,2062.0,0.001]
[1773131207810,2.62820856,2062.5,2062.0,1.21340539]
[1773131208015,3.84033179,2062.5,2062.0,0.001]
[1773131208190,2.62820856,2062.5,2062.0,0.001]
[1773131209106,3.84034015,2062.5,2062.0,0.001]
[1773131209308,2.62820856,2062.5,2062.0,0.001]
[1773131209507,3.8403373,2062.5,2062.0,0.001]
[1773131210415,2.62820856,2062.5,2062.0,0.001]
[1773131211410,2.62820856,2062.5,2062.0,2.48437843]
[1773131212081,1.21204527,2062.7,2062.0,2.48437843]
[1773131212815,2.66273692,2062.7,2062.0,3.69676886]
[1773131213414,2.66273692,2062.7,2062.0,2.48437843]
[1773131214215,2.66273692,2062.7,2062.0,0.001]
[1773131214514,2.66273692,2062.7,2061.8,0.001]
[1773131214700,4.84824978,2062.7,2061.8,0.001]
[1773131214886,2.66273692,2062.5,2061.8,0.001]
[1773131217091,2.66273692,2062.3,2061.8,0.001]
[1773131217715,4.84871993,2062.5,2061.8,0.001]
[1773131217716,2.66273692,2062.5,2062.2,0.001]
[1773131217886,3.87686295,2062.5,2062.2,0.001]
[1773131218412,3.8768815,2062.5,2062.2,0.001]
[1773131220419,3.8768815,2062.5,2062.2,2.48437843]
[1773131220420,0.002,2062.5,2062.2,2.48437843]
[1773131221210,0.002,2062.5,2062.2,3.69667163]
[1773131222402,0.002,2062.7,2062.3,2.48337843]
[1773131222802,2.66473692,2062.7,2062.2,0.001]
[1773131222995,2.66273692,2062.6,2062.2,0.001]
[1773131223188,3.87485813,2062.5,2062.2,0.001]
[1773131223422,3.87485813,2062.5,2061.8,0.001]
[1773131223423,2.66273692,2062.4,2061.8,0.001]
[1773131223997,3.86896251,2062.6,2061.9,2.5806425]
[1773131224196,3.86893074,2062.6,2061.9,2.5806425]
[1773131224699,2.65685561,2062.6,2061.9,2.5806425]
[1773131224909,0.002,2062.7,2062.0,2.5806425]
[1773131225529,0.002,2062.7,2062.1,3.79299883]
[1773131225789,0.002,2062.9,2062.3,2.5806425]
[1773131227293,0.002,2063.1,2062.6,2.5806425]
[1773131227690,0.002,2063.1,2062.7,1.21200368]
[1773131228932,0.002,2063.1,2062.7,3.79264618]
[1773131229251,0.002,2063.1,2062.8,2.5806425]
[1773131229408,0.002,2063.4,2062.8,2.5806425]
[1773131229798,0.002,2063.4,2063.0,2.5806425]
[1773131230115,2.65885561,2063.4,2062.8,3.79254153]
[1773131230635,2.65885561,2063.4,2062.3,2.5806425]
[1773131230636,2.65685561,2063.3,2062.3,2.5806425]
[1773131230811,0.002,2063.4,2062.6,2.5806425]
[1773131231931,0.002,2063.4,2062.8,2.5806425]
[1773131232234,0.002,2063.4,2062.9,2.5806425]
[1773131232905,0.002,2063.1,2062.9,2.5806425]
[1773131233116,0.002,2063.4,2062.9,2.5806425]
[1773131233930,0.002,2063.4,2063.0,5.34246993]
[1773131235317,2.65885561,2063.4,2062.6,1.21206244]
[1773131235638,2.65885561,2063.4,2062.7,2.5806425]
[1773131235936,3.87046827,2063.4,2062.8,1.21194492]
[1773131236235,2.65885561,2063.4,2062.8,1.21194492]
[1773131236536,0.002,2063.4,2062.8,3.79258742]
[1773131236911,0.002,2063.4,2062.9,2.5806425]
[1773131238137,0.002,2063.4,2063.0,1.21182743]
[1773131240939,0.002,2063.4,2063.0,3.79246993]
[1773131242133,0.002,2063.4,2063.0,1.21182743]
[1773131242311,0.002,2063.4,2063.0,1.551]
[1773131242515,2.65885561,2063.4,2062.6,3.7926585]
[1773131242828,2.65885561,2063.4,2062.6,5.3436585]
[1773131242829,3.86850684,2063.3,2062.6,5.3436585]
[1773131243024,3.86850684,2063.3,2062.7,2.5806425]
[1773131243242,2.65685561,2063.3,2062.7,2.5806425]
[1773131243745,2.65685561,2063.3,2062.5,1.21207925]
[1773131243949,2.65685561,2063.3,2062.6,1.551]
[1773131244350,2.65685561,2063.3,2062.5,1.21207925]
[1773131244654,2.65685561,2063.3,2063.0,0.001]
[1773131244853,3.87056557,2063.2,2063.0,0.001]
[1773131245162,0.002,2063.2,2063.0,0.001]
[1773131245352,2.65885561,2063.4,2063.0,2.5816425]
[1773131245353,0.002,2063.4,2063.0,2.5816425]
[1773131246836,0.002,2063.4,2063.1,1.21176869]
[1773131248760,0.002,2063.4,2063.2,0.04738705]
[1773131249627,0.002,2063.4,2063.2,1.25909694]
[1773131250052,0.002,2063.4,2063.2,0.04738705]
[1773131250249,0.002,2063.4,2063.2,1.259097]
[1773131250427,0.002,2063.4,2063.2,1.2590819]
[1773131250622,0.002,2063.4,2063.2,0.04738705]
[1773131250827,0.002,2063.4,2063.2,1.25909373]
[1773131254855,0.002,2063.6,2063.2,3.73822588]
[1773131255735,0.002,2063.6,2063.2,3.69083883]
[1773131256964,0.002,2063.6,2063.4,0.001]
[1773131259356,0.002,2063.6,2063.4,2.48013215]
[1773131259863,0.002,2063.9,2063.5,1.553]
[1773131260168,0.002,2063.9,2063.6,2.47913215]
[1773131262042,0.002,2063.9,2063.5,2.76448873]
[1773131262244,2.41044386,2063.9,2063.5,1.554]
[1773131263262,2.40844386,2063.8,2063.4,0.001]
[1773131263564,2.40844386,2063.8,2063.3,1.554]
[1773131264164,2.40844386,2063.8,2063.1,2.76673817]
[1773131265172,2.40844386,2063.8,2063.1,5.24587032]
[1773131265361,2.40844386,2063.7,2063.1,1.21273817]
[1773131265562,2.40844386,2063.7,2063.1,2.76673175]
[1773131266147,2.40844386,2063.7,2063.1,2.76674998]
[1773131266351,2.40844386,2063.7,2063.1,5.24588213]
[1773131266869,4.84732973,2063.9,2063.1,5.24588213]
[1773131266870,0.002,2063.9,2063.2,2.47913215]
[1773131267057,3.62174872,2063.9,2063.2,2.47913215]
[1773131267252,3.62175814,2063.9,2063.2,2.47913215]
[1773131267453,3.62175814,2063.9,2063.3,3.69078338]
[1773131267751,1.21331428,2063.9,2063.3,3.69078338]
[1773131267951,0.002,2063.9,2063.4,2.47913215]
[1773131269753,0.002,2063.9,2063.7,2.47913215]
[1773131270446,0.002,2063.9,2063.6,1.555]
[1773131270845,0.002,2064.3,2063.7,2.47913215]
[1773131271245,0.002,2064.0,2063.7,2.47913215]
[1773131271747,0.002,2064.0,2063.8,3.69048983]
[1773131272051,0.002,2064.0,2063.9,2.47913215]
[1773131272672,0.002,2064.3,2063.9,2.47913215]
[1773131272974,2.43605165,2064.3,2063.9,2.47913215]
[1773131273770,2.43605165,2064.3,2063.8,1.21132813]
[1773131273977,2.43605165,2064.3,2063.8,3.45566798]
[1773131274476,2.43605165,2064.3,2063.8,1.21132813]
[1773131274677,2.43605165,2064.3,2063.9,2.24433985]
[1773131275261,0.002,2064.3,2063.9,2.24433985]
[1773131275761,0.002,2064.3,2064.0,1.21124031]
[1773131276076,0.002,2064.3,2064.1,2.24433985]
[1773131277071,0.002,2064.5,2064.2,2.24433985]
[1773131277848,2.43405165,2064.3,2064.0,1.557]
[1773131278452,2.43405165,2064.3,2063.7,2.76841363]
[1773131279575,2.43405165,2064.3,2063.5,2.76849405]
[1773131279977,2.43405165,2064.1,2063.5,2.76849405]
[1773131281390,2.43405165,2064.1,2063.3,0.001]
[1773131281595,2.43405165,2064.1,2063.3,5.01496822]
[1773131282784,3.64529196,2064.0,2063.4,2.24433985]
[1773131283161,2.43405165,2063.9,2063.3,2.77062837]
[1773131283389,2.43605165,2063.9,2063.3,1.21264077]
[1773131283558,2.43605165,2063.9,2063.3,0.001]
[1773131283759,2.43605165,2063.9,2063.3,1.21263815]
[1773131284176,2.43605165,2063.9,2063.3,0.001]
[1773131284486,2.28518662,2063.8,2063.1,1.21275342]
[1773131284679,2.28518662,2063.8,2063.1,3.42302119]
[1773131284878,3.49655563,2063.8,2063.1,3.42302119]
[1773131285080,2.28518662,2063.7,2063.1,3.42302119]
[1773131285464,3.49655563,2063.8,2063.2,2.21026777]
[1773131286490,2.28518662,2063.7,2063.2,2.21026777]
[1773131286694,2.28518662,2063.7,2063.1,2.77175342]
[1773131287063,3.49660539,2063.7,2063.1,4.98202119]
[1773131288797,2.28518662,2063.6,2063.1,3.77026777]
[1773131289102,2.28518662,2063.4,2063.1,0.001]
[1773131289979,2.28518662,2063.4,2063.1,1.21273529]
[1773131290183,3.49666775,2063.6,2063.1,1.21273529]
[1773131290798,3.49656614,2063.8,2063.2,2.21026777]
[1773131291089,2.28518662,2063.7,2063.2,3.42195112]
[1773131291283,2.28518662,2063.7,2063.2,2.21026777]
[1773131291481,2.28518662,2063.7,2063.1,1.21272236]
[1773131291874,2.28518662,2063.7,2063.1,3.42299013]
[1773131293397,2.28518662,2063.7,2063.2,2.21026777]
[1773131293895,1.21137891,2063.8,2063.2,2.21026777]
[1773131294203,3.49656553,2063.8,2063.2,2.21026777]
[1773131295595,3.49656553,2063.8,2063.3,1.21265123]
[1773131295894,0.002,2063.9,2063.4,2.21026777]
[1773131296072,1.21330179,2063.9,2063.4,2.21026777]
[1773131296279,0.002,2063.9,2063.4,2.21026777]
[1773131296669,2.28518662,2063.8,2063.3,1.21265123]
[1773131297504,2.28518662,2063.8,2063.3,3.422919]
[1773131297875,0.002,2063.9,2063.4,2.21026777]
[1773131298376,2.28518662,2063.8,2063.3,0.001]
[1773131298774,2.28518662,2063.7,2063.1,0.001]
[1773131300488,2.28518662,2063.5,2063.1,0.001]
[1773131302374,3.496774,2063.5,2063.1,0.001]
[1773131302776,2.28518662,2063.4,2063.1,0.001]
[1773131303170,2.28518662,2063.4,2062.9,0.001]
[1773131303406,2.28518662,2063.4,2062.8,0.001]
[1773131304405,2.28518662,2063.2,2062.8,0.001]
[1773131306599,3.49693356,2063.2,2062.8,0.001]
[1773131306806,2.28518662,2063.1,2062.8,0.001]
[1773131307508,7.43669059,2063.8,2062.8,2.21126777]
[1773131307509,2.28518662,2063.6,2062.8,2.21126777]
[1773131307725,2.28518662,2063.6,2063.0,0.001]
[1773131308107,2.28518662,2063.6,2062.8,0.001]
[1773131308305,7.19731268,2063.7,2062.5,0.001]
[1773131308306,2.28518662,2063.3,2062.5,0.001]
[1773131308891,2.28518662,2063.1,2062.5,0.001]
[1773131310485,2.28518662,2063.1,2062.5,2.21126777]
[1773131311011,3.49701405,2063.0,2062.5,2.21126777]
[1773131311312,2.28518662,2062.9,2062.5,0.001]
[1773131313307,3.49708641,2062.9,2062.5,0.001]
[1773131314389,2.3028713,2062.8,2062.5,0.001]
[1773131315231,3.51487498,2062.7,2062.5,0.001]
[1773131315994,1.21200368,2062.7,2062.5,0.001]
[1773131316183,2.3028713,2062.6,2062.5,0.001]
[1773131316583,1.21200368,2062.7,2062.5,0.001]
[1773131316916,2.3028713,2062.7,2062.5,0.001]
[1773131317309,3.51488828,2062.7,2062.5,0.001]
[1773131317688,2.3028713,2062.9,2062.5,0.001]
[1773131317900,3.51480279,2062.9,2062.5,2.22098859]
[1773131318607,2.3028713,2063.1,2062.5,2.22098859]
[1773131318805,2.3028713,2063.1,2062.5,0.001]
[1773131320013,2.3028713,2062.9,2062.7,0.001]
[1773131320237,3.51469873,2063.0,2062.7,0.001]
[1773131320391,0.002,2062.9,2062.7,0.001]
[1773131320919,2.3048713,2063.2,2062.8,2.21998859]
[1773131321118,3.51661798,2063.2,2062.8,2.21998859]
[1773131321293,1.21374668,2063.2,2062.8,2.21998859]
[1773131322758,0.002,2063.2,2062.8,3.43191975]
[1773131323028,2.3048713,2063.2,2062.8,2.21998859]
[1773131324104,2.3048713,2063.2,2062.7,1.21300357]
[1773131324601,2.3048713,2063.2,2062.7,0.001]
[1773131324926,2.3028713,2063.0,2062.7,0.001]
[1773131326819,3.51475337,2063.0,2062.7,0.001]
[1773131327214,2.3028713,2062.9,2062.5,0.001]
[1773131328828,2.3028713,2062.7,2062.5,0.001]
[1773131329419,2.3028713,2062.7,2062.2,0.001]
[1773131332325,1.21206244,2062.6,2062.4,0.001]
[1773131332522,3.30796254,2062.6,2062.4,0.001]
[1773131333215,2.0959001,2062.5,2062.4,0.001]
[1773131333417,2.0959001,2062.5,2062.2,0.001]
[1773131334815,1.21217998,2062.4,2062.2,0.001]
[1773131335038,3.30808008,2062.4,2062.2,0.001]
[1773131335248,2.0959001,2062.3,2062.0,0.001]
[1773131337343,3.30806769,2062.5,2062.0,2.14056873]
[1773131338953,4.61795028,2062.7,2062.2,2.13956873]
[1773131339154,1.21397061,2062.8,2062.2,2.13956873]
[1773131340227,0.002,2062.8,2062.2,2.13956873]
[1773131340453,0.002,2062.8,2062.4,2.13956873]
[1773131341151,0.002,2062.8,2062.5,3.35168994]
[1773131341445,0.002,2062.8,2062.5,2.13956873]
[1773131341651,2.0979001,2062.8,2062.3,2.13956873]
[1773131341838,2.0979001,2062.8,2062.1,2.13956873]
[1773131342043,2.0979001,2062.8,2062.2,2.13956873]
[1773131342351,2.0979001,2062.8,2062.0,2.14056873]
[1773131343134,2.0959001,2062.6,2062.1,2.13956873]
[1773131343819,3.44293341,2062.8,2062.1,2.13956873]
[1773131344153,3.44292407,2062.8,2062.1,2.13956873]
[1773131344541,2.23096393,2062.8,2062.1,2.13956873]
[1773131344725,3.44291176,2062.8,2062.1,2.13956873]
[1773131345292,2.23096393,2062.8,2062.2,1.21229754]
[1773131345458,3.44292532,2062.8,2062.3,2.09733196]
[1773131345623,2.23096393,2062.8,2062.3,2.09733196]
[1773131346238,0.002,2062.8,2062.3,2.09733196]
[1773131346853,0.002,2062.8,2062.4,0.001]
[1773131347056,0.002,2062.8,2062.5,2.09733196]
[1773131347663,0.002,2062.8,2062.6,3.3093944]
[1773131349226,0.002,2063.0,2062.6,1.21206244]
[1773131349433,0.002,2063.0,2062.7,2.09733196]
[1773131349739,0.002,2063.0,2062.9,2.09733196]
[1773131349955,0.002,2063.2,2062.9,2.09733196]
[1773131352571,0.002,2063.2,2063.0,3.30915939]
[1773131354561,0.002,2063.2,2063.0,2.09733196]
[1773131354755,0.002,2063.2,2062.8,3.64333196]
[1773131355836,0.002,2063.2,2062.5,4.84846202]
[1773131355837,2.23096393,2063.2,2062.6,3.64433196]
[1773131356657,2.22896393,2063.1,2062.7,1.21200368]
[1773131357047,2.22896393,2063.1,2062.6,3.30936361]
[1773131357579,2.22896393,2063.1,2062.6,1.21203165]
[1773131357778,2.22896393,2063.1,2062.7,2.09733196]
[1773131357948,2.22896393,2063.1,2062.5,3.64433196]
[1773131358148,2.22896393,2063.1,2062.5,3.3094378]
[1773131358350,0.002,2063.2,2062.6,2.09733196]
[1773131358550,1.21371048,2063.2,2062.6,2.09733196]
[1773131358761,2.23096393,2063.2,2062.7,3.30933564]
[1773131358992,0.002,2063.0,2062.7,3.30933564]
[1773131360862,0.002,2063.0,2062.8,2.09733196]
[1773131362066,0.002,2063.0,2062.9,1.21188617]
[1773131362273,0.002,2063.0,2062.8,3.30923084]
[1773131363654,0.002,2063.0,2062.8,2.09733196]
[1773131363853,0.002,2063.0,2062.8,3.30927552]
[1773131364491,0.002,2063.0,2062.9,2.09733196]
[1773131365959,0.002,2063.0,2062.9,3.30921813]
[1773131366982,0.002,2063.0,2062.9,2.09733196]
[1773131367188,0.002,2063.0,2062.8,2.76090966]
[1773131367356,0.002,2063.0,2062.8,4.85824162]
[1773131368288,0.002,2063.0,2062.9,2.09733196]
[1773131368687,0.002,2063.0,2062.6,2.09733196]
[1773131369674,0.002,2063.0,2062.7,2.09733196]
[1773131370276,0.002,2063.0,2062.8,3.30927688]
[1773131370473,0.002,2063.0,2062.9,2.09733196]
[1773131370877,0.002,2063.0,2062.8,0.001]
[1773131371278,0.002,2063.0,2062.8,2.09833196]
[1773131372708,2.23096393,2063.2,2062.8,2.09833196]
[1773131372709,0.002,2063.2,2062.9,2.09733196]
[1773131373776,0.002,2063.2,2062.9,3.64933196]
[1773131373986,0.002,2063.2,2063.0,2.12638349]
[1773131375092,2.02605303,2063.4,2063.0,1.21181462]
[1773131375346,2.02605303,2063.4,2062.9,4.89023256]
[1773131375602,2.02605303,2063.4,2063.0,1.553]
[1773131376493,2.02605303,2063.4,2062.8,4.89229473]
[1773131376694,2.02605303,2063.4,2062.8,2.12738349]
[1773131376894,2.02605303,2063.2,2062.8,0.001]
[1773131377696,2.02605303,2063.2,2062.8,2.12738349]
[1773131378466,0.002,2063.5,2062.8,2.12738349]
[1773131378672,0.002,2063.5,2063.1,2.12638349]
[1773131378871,0.002,2063.5,2063.2,3.33809345]
[1773131379897,0.002,2063.5,2063.3,2.12638349]
[1773131380890,0.002,2063.7,2063.2,1.21165123]
[1773131381091,0.002,2063.7,2063.3,2.12638349]
[1773131381491,0.002,2063.7,2063.4,2.12638349]
[1773131381789,0.002,2063.7,2063.5,2.12638349]
[1773131383182,0.002,2063.7,2063.5,3.33791043]
[1773131383678,2.02805303,2063.7,2063.4,1.555]
[1773131384018,2.02805303,2063.7,2063.3,1.556]
[1773131384193,2.02805303,2063.7,2063.2,2.76866551]
[1773131385084,3.23947455,2063.7,2063.2,2.76866551]
[1773131385286,2.02605303,2063.6,2063.2,2.76866551]
[1773131385508,0.002,2063.5,2063.2,2.76866551]
[1773131385816,2.02805303,2063.5,2063.0,1.21278355]
[1773131385986,2.02805303,2063.5,2063.0,2.76978355]
[1773131386189,2.02805303,2063.5,2063.0,4.89616704]
[1773131387330,2.02805303,2063.5,2063.1,2.12638349]
[1773131389224,2.02805303,2063.5,2063.2,1.21170996]
[1773131390848,0.002,2063.5,2063.3,2.12638349]
[1773131391614,0.002,2063.5,2063.2,1.21166391]
[1773131391784,2.02805303,2063.5,2063.2,1.21166391]
[1773131391984,2.02805303,2063.5,2063.0,1.212785]
[1773131392222,2.02805303,2063.5,2063.1,1.56]
[1773131393810,2.02805303,2063.5,2063.1,2.7717479]
[1773131394300,1.8961493,2063.4,2063.1,2.7717662]
[1773131394498,1.8961493,2063.4,2063.1,1.56]
[1773131394826,1.8961493,2063.4,2063.1,2.77176789]
[1773131395008,0.002,2063.5,2063.1,4.66331817]
[1773131395524,1.8981493,2063.5,2063.1,4.66331817]
[1773131396527,1.8961493,2063.4,2063.1,4.66331703]
[1773131396826,1.8961493,2063.4,2063.1,3.45155028]
[1773131397025,1.8961493,2063.4,2062.8,0.001]
[1773131397228,1.8961493,2063.4,2062.8,3.10446835]
[1773131397426,0.002,2063.3,2062.9,1.89155028]
[1773131397609,1.8981493,2063.3,2062.9,1.89155028]
[1773131397818,1.8981493,2063.3,2062.5,0.001]
[1773131397819,1.8961493,2062.9,2062.5,0.001]
[1773131398407,1.8961493,2062.8,2062.5,0.001]
[1773131400308,3.10815298,2062.7,2062.5,0.001]
[1773131400512,1.8961493,2062.7,2062.5,1.564]
[1773131400830,1.8961493,2063.0,2062.5,1.564]
[1773131401028,1.8961493,2063.0,2062.5,3.45555028]
[1773131401228,1.8961493,2063.0,2062.6,1.89155028]
[1773131401948,1.8961493,2063.2,2062.6,1.89155028]
[1773131402134,1.8961493,2063.2,2062.7,1.563]
[1773131402333,3.10791799,2063.1,2062.7,1.563]
[1773131402534,1.8961493,2063.1,2062.7,1.563]
[1773131402833,1.8961493,2063.1,2062.7,4.66651212]
[1773131403034,1.8961493,2063.1,2062.7,3.45455028]
[1773131403944,1.8961493,2063.1,2062.7,1.563]
[1773131404447,1.91959582,2063.0,2062.7,1.563]
[1773131406427,3.13135196,2063.2,2062.7,4.7221398]
[1773131406644,1.91959582,2063.1,2062.7,4.7221398]
[1773131407053,1.91959582,2063.1,2062.7,2.77500292]
[1773131407233,1.91959582,2063.1,2062.7,1.563]
[1773131407864,1.91959582,2063.1,2062.7,0.72908335]
[1773131408539,1.91959582,2062.9,2062.5,0.001]
[1773131408738,1.91959582,2062.9,2062.6,0.72908335]
[1773131408918,1.21182743,2063.0,2062.6,0.72908335]
[1773131409133,3.13142325,2063.0,2062.6,0.72908335]
[1773131409333,1.91959582,2063.0,2062.6,0.72908335]
[1773131409665,1.91959582,2063.2,2062.8,0.001]
[1773131410062,1.92159582,2063.0,2062.8,0.73008335]
[1773131410472,3.1334367,2063.0,2062.8,0.73008335]
[1773131410777,0.002,2063.0,2062.8,0.73008335]
[1773131411065,3.13343345,2063.0,2062.8,0.73008335]
[1773131411363,1.92159582,2063.0,2062.8,0.73008335]
[1773131414473,3.1334254,2063.0,2062.8,0.73008335]
[1773131414645,1.91959582,2062.9,2062.5,0.001]
[1773131414845,3.13154074,2062.8,2062.5,0.001]
[1773131415041,0.002,2063.0,2062.6,1.94713688]
[1773131415241,3.08724772,2063.0,2062.6,1.94713688]
[1773131415458,3.08724772,2063.0,2062.5,0.001]
[1773131416978,1.91959582,2062.9,2062.5,0.001]
[1773131418743,0.002,2063.0,2062.6,1.94713688]
[1773131418940,1.21385276,2063.0,2062.6,1.94713688]
[1773131419160,0.002,2063.0,2062.6,3.15919395]
[1773131419372,1.89353786,2063.0,2062.5,0.001]
[1773131421087,0.002,2063.0,2062.6,1.94713688]
[1773131421373,3.08701357,2063.0,2062.6,1.94713688]
[1773131421878,1.87317201,2062.9,2062.5,0.001]
[1773131422279,1.87317201,2062.9,2062.7,0.001]
[1773131422578,0.002,2063.0,2062.8,1.94713688]
[1773131423075,0.002,2063.3,2063.0,1.94713688]
[1773131424177,0.002,2063.3,2062.8,3.15903574]
[1773131424478,0.002,2063.3,2062.8,3.15906754]
[1773131424855,0.002,2063.3,2062.8,1.94713688]
[1773131425256,1.21365123,2063.3,2062.8,3.15907524]
[1773131425956,3.05324099,2063.3,2062.8,1.94713688]
[1773131426780,3.05324099,2063.3,2062.8,3.15907747]
[1773131427905,0.002,2063.3,2062.9,1.94713688]
[1773131428455,1.21365175,2063.3,2062.9,1.94713688]
[1773131428775,1.81370735,2063.2,2062.7,1.94813688]
[1773131428972,1.81370735,2063.2,2062.7,0.001]
[1773131429375,3.01700501,2063.1,2062.7,0.001]
[1773131430385,1.79684178,2063.0,2062.7,0.001]
[1773131430580,1.79684178,2063.0,2062.5,0.001]
[1773131431256,1.78855492,2062.8,2062.5,0.001]
[1773131432795,1.21170996,2063.2,2062.5,1.94813688]
[1773131432964,2.99400532,2063.3,2062.5,1.94813688]
[1773131433365,1.77215808,2063.2,2062.6,1.21206244]
[1773131433566,1.77215808,2063.2,2062.6,3.19162443]
[1773131433997,1.77215808,2063.2,2062.6,1.97956199]
[1773131434498,1.77215808,2063.2,2062.7,0.001]
[1773131434799,0.002,2062.8,2062.7,0.001]
[1773131435907,0.002,2063.0,2062.7,1.98056199]
[1773131437767,0.002,2063.0,2062.8,1.21194492]
[1773131437979,0.002,2063.0,2062.8,3.19150691]
[1773131439000,0.002,2063.3,2062.9,1.97956199]
[1773131439873,0.002,2063.3,2063.0,1.97956199]
[1773131440095,0.002,2063.3,2062.8,1.97956199]
[1773131440096,1.71556339,2063.3,2062.8,1.97956199]
[1773131440281,1.71556339,2063.3,2062.5,0.001]
[1773131440282,1.71356339,2063.2,2062.5,0.001]
[1773131440498,1.71356339,2063.2,2062.5,3.19267581]
[1773131440696,0.002,2063.3,2062.6,1.97956199]
[1773131441168,1.70807778,2063.3,2062.6,1.97956199]
[1773131442008,1.21170996,2063.2,2062.7,1.21200368]
[1773131442311,2.91977706,2063.3,2062.7,3.19156567]
[1773131442509,0.002,2063.3,2062.8,1.97956199]
[1773131443972,0.002,2063.3,2063.0,1.97956199]
[1773131446912,0.002,2063.3,2063.2,1.97956199]
[1773131447095,0.002,2063.5,2063.2,1.97956199]
[1773131448307,0.002,2063.3,2063.2,1.97956199]
[1773131449004,0.002,2063.3,2063.2,3.19127195]
[1773131449173,0.002,2063.8,2063.3,1.7833817]
[1773131449375,0.002,2063.8,2063.5,1.7833817]
[1773131451085,0.002,2063.8,2063.7,1.7833817]
[1773131451799,0.002,2063.9,2063.7,1.7833817]
[1773131453116,0.002,2063.9,2063.5,2.9949155]
[1773131453314,0.002,2063.9,2063.6,1.7833817]
[1773131454685,0.002,2064.0,2063.6,1.7833817]
[1773131455097,0.002,2064.0,2063.8,1.7833817]
[1773131455493,0.002,2064.0,2063.7,1.21141638]
[1773131455494,0.002,2064.1,2064.0,1.7833817]
[1773131455719,0.002,2064.2,2063.9,1.567]
[1773131456015,0.002,2064.7,2064.1,1.7833817]
[1773131457214,0.002,2064.7,2064.3,1.7833817]
[1773131458321,1.59051617,2064.7,2064.1,2.99451657]
[1773131458622,1.59051617,2064.7,2063.9,1.568]
[1773131458623,1.58851617,2064.5,2063.9,2.77929315]
[1773131458926,0.002,2064.7,2064.0,1.7833817]
[1773131459421,1.58417781,2064.7,2064.1,1.21118162]
[1773131459789,0.002,2064.7,2064.2,1.7833817]
[1773131460309,1.57789725,2064.5,2064.0,1.2112329]
[1773131460618,1.57789725,2064.5,2063.9,2.77929234]
[1773131460918,1.57789725,2064.5,2063.9,4.56267404]
[1773131461520,2.78886471,2064.5,2063.9,4.56267404]
[1773131462016,0.002,2064.5,2064.0,1.7833817]
[1773131462224,0.002,2064.7,2064.0,1.7833817]
[1773131463023,0.002,2064.9,2064.4,1.7833817]
[1773131463224,0.002,2065.0,2064.6,1.7833817]
[1773131463385,1.55944951,2065.8,2064.6,1.7833817]
[1773131463586,2.76963842,2065.8,2064.8,1.80900741]
[1773131464121,1.24662947,2066.4,2065.1,2.3505106]
[1773131464302,1.54936027,2066.3,2065.3,1.80900741]
[1773131464515,1.24662947,2066.4,2065.2,1.569]
[1773131464516,0.0367452,2066.4,2065.5,1.80900741]
[1773131465516,0.0367452,2066.4,2065.8,1.80900741]
[1773131465818,0.0367452,2066.4,2065.9,4.58813374]
[1773131466317,0.0367452,2066.4,2065.8,4.84050534]
[1773131466318,1.24658985,2066.4,2065.8,1.21014005]
[1773131466618,0.0367452,2066.4,2065.8,1.21014005]
[1773131467322,0.0367452,2066.4,2065.2,7.19250736]
[1773131467323,1.53162737,2066.3,2065.3,3.0194853]
[1773131467619,1.53162737,2066.3,2065.3,1.21047789]
[1773131467620,1.53162737,2066.1,2065.3,1.21047789]
[1773131468127,2.77239749,2066.4,2065.4,1.80900741]
[1773131468315,0.0367452,2066.4,2065.4,1.80900741]
[1773131468509,0.0367452,2066.4,2065.5,2.3505106]